[Event "GER-chW Blitz 2019"]
[Site "Magdeburg"]
[Date "2019.05.25"]
[Round "7.4"]
[White "Silz, Elisa"]
[Black "Michna, Marta"]
[Result "0-1"]
[ECO "E94"]
[WhiteElo "1977"]
[BlackElo "2355"]
[Annotator "NA"]
[PlyCount "52"]
[EventDate "2019.05.25"]
[EventType "tourn"]
[EventCountry "GER"]
[SourceTitle "playchess.com"]
[Source "ChessBase"]
[SourceQuality "1"]
[TimeControl "180+2"]

1. d4 {[%emt 0:00:00]} Nf6 {[%emt 0:00:00]} 2. Nf3 {[%emt 0:00:00]} d6 {[%emt 0:00:00]} 3. c4 {[%emt 0:00:00]} Nbd7 {[%emt 0:00:00]} 4. Nc3 {[%emt 0:00:01]} e5 {[%emt 0:00:00]} 5. e4 {[%emt 0:00:02]} g6 {[%emt 0:00:01]} 6. Be2 Bg7 7. O-O O-O 8. Qc2 {[%emt 0:00:05]} c6 {[%emt 0:00:03]} 9. Rd1 {[%emt 0:00:02]} Qc7 {[%emt 0:00:01]} 10. d5 {[%emt 0:00:00]} c5 {[%emt 0:00:10]} 11. h3 {[%emt 0:00:06]} Nh5 {[%emt 0:00:09]} 12. Rb1 {[%emt 0:00:11]} Qd8 {[%emt 0:00:09]} 13. Bg5 {[%emt 0:00:04]} f6 {[%emt 0:00:02]} 14. Be3 {[%emt 0:00:05]} Nf4 {[%emt 0:00:06]} 15. b4 {[%emt 0:00:13]} b6 {[%emt 0:00:00]} 16. bxc5 {[%emt 0:00:02]} Nxc5 {[%emt 0:00:09]} 17. Bxc5 {[%emt 0:00:07]} bxc5 {[%emt 0:00:00]} 18. h4 {[%emt 0:00:14]} h6 {[%emt 0:00:10]} 19. g3 {[%emt 0:00:08]} Nxe2+ {[%emt 0:00:05]} 20. Qxe2 {[%emt 0:00:02]} Bg4 {[%emt 0:00:01]} 21. Rb7 {[%emt 0:00:16]} f5 {[%emt 0:00:16]} 22. exf5 {[%emt 0:00:25]} gxf5 {[%emt 0:00:08]} 23. Qe3 {[%emt 0:00:20]} e4 {[%emt 0:00:07]} 24. Nxe4 {[%emt 0:00:32]} fxe4 {[%emt 0:00:02]} 25. Qxe4 {[%emt 0:00:13]} Bxf3 {[%emt 0:00:18]} 26. Qg6 {[%emt 0:00:01]} Qf6 {[%emt 0:00:02]} 0-1

[Event "GER-chW Blitz 2019"]
[Site "Magdeburg"]
[Date "2019.05.25"]
[Round "7.5"]
[White "Kotyk, Valeriya"]
[Black "Osmanodja, Filiz"]
[Result "0-1"]
[ECO "A45"]
[WhiteElo "1739"]
[BlackElo "2260"]
[Annotator "NA"]
[PlyCount "86"]
[EventDate "2019.05.25"]
[EventType "tourn"]
[EventCountry "GER"]
[SourceTitle "playchess.com"]
[Source "ChessBase"]
[SourceQuality "1"]
[TimeControl "180+2"]

1. d4 {[%emt 0:00:00]} Nf6 {[%emt 0:00:00]} 2. Bg5 {[%emt 0:00:01]} e6 {[%emt 0:00:01]} 3. c4 {[%emt 0:00:02]} c5 {[%emt 0:00:04]} 4. d5 {[%emt 0:00:05]} d6 {[%emt 0:00:03]} 5. Nc3 {[%emt 0:00:02]} e5 {[%emt 0:00:03]} 6. e4 {[%emt 0:00:02]} Be7 {[%emt 0:00:02]} 7. Nf3 {[%emt 0:00:04]} h6 {[%emt 0:00:01]} 8. Be3 {[%emt 0:00:02]} O-O {[%emt 0:00:10]} 9. Be2 {[%emt 0:00:00]} Ng4 {[%emt 0:00:03]} 10. O-O {[%emt 0:00:10]} f5 {[%emt 0:00:07]} 11. exf5 {[%emt 0:00:17]} Bxf5 {[%emt 0:00:12]} 12. Nd2 {[%emt 0:00:02]} Nxe3 {[%emt 0:00:32]} 13. fxe3 {[%emt 0:00:02]} Bg5 {[%emt 0:00:05]} 14. e4 {[%emt 0:00:02]} Be3+ {[%emt 0:00:05]} 15. Kh1 {[%emt 0:00:02]} Bg6 {[%emt 0:00:17]} 16. Nf3 {[%emt 0:00:16]} Nd7 {[%emt 0:00:05]} 17. Qd3 {[%emt 0:00:06]} Bd4 {[%emt 0:00:22]} 18. Nd2 {[%emt 0:00:04]} Nf6 {[%emt 0:00:12]} 19. Bf3 {[%emt 0:00:07]} Nh5 {[%emt 0:00:07]} 20. Bxh5 {[%emt 0:00:21]} Bxh5 {[%emt 0:00:02]} 21. Rxf8+ {[%emt 0:00:01]} Qxf8 {[%emt 0:00:01]} 22. Rf1 {[%emt 0:00:01]} Qe7 {[%emt 0:00:06]} 23. Nf3 {[%emt 0:00:02]} Rf8 {[%emt 0:00:10]} 24. b3 {[%emt 0:00:07]} Bg6 {[%emt 0:00:08]} 25. Ne2 {[%emt 0:00:08]} Qd7 {[%emt 0:00:15]} 26. Ng3 {[%emt 0:00:08]} Qg4 {[%emt 0:00:05]} 27. Qe2 {[%emt 0:00:23]} h5 {[%emt 0:00:17]} 28. Rd1 {[%emt 0:00:35]} Rf4 {[%emt 0:00:10]} 29. Re1 {[%emt 0:00:08]} Bc3 {[%emt 0:00:01]} 30. Rc1 {[%emt 0:00:02]} Bd4 {[%emt 0:00:04]} 31. Re1 {[%emt 0:00:02]} h4 {[%emt 0:00:03]} 32. Nf1 {[%emt 0:00:10]} Rxe4 {[%emt 0:00:03]} 33. Qd1 {[%emt 0:00:02]} Rxe1 34. Qxe1 e4 {[%emt 0:00:06]} 35. Nxd4 cxd4 36. Nd2 {[%emt 0:00:11]} e3 {[%emt 0:00:02]} 37. Nf3 {[%emt 0:00:03]} Be4 {[%emt 0:00:03]} 38. Qe2 {[%emt 0:00:02]} Bxf3 {[%emt 0:00:03]} 39. gxf3 {[%emt 0:00:04]} Qf5 {[%emt 0:00:01]} 40. Kg2 {[%emt 0:00:02]} h3+ {[%emt 0:00:02]} 41. Kg3 {[%emt 0:00:04]} g5 {[%emt 0:00:04]} 42. a4 {[%emt 0:00:02]} Kg7 {[%emt 0:00:01]} 43. b4 {[%emt 0:00:01]} Kh6 {[%emt 0:00:01]} 0-1

[Event "GER-chW Blitz 2019"]
[Site "Magdeburg"]
[Date "2019.05.25"]
[Round "7.6"]
[White "Fuchs, Judith"]
[Black "Sieber, Fiona"]
[Result "1/2-1/2"]
[ECO "A45"]
[WhiteElo "2218"]
[BlackElo "2250"]
[Annotator "NA"]
[PlyCount "109"]
[EventDate "2019.05.25"]
[EventType "tourn"]
[EventCountry "GER"]
[SourceTitle "playchess.com"]
[Source "ChessBase"]
[SourceQuality "1"]
[TimeControl "180+2"]

1. d4 {[%emt 0:00:00]} Nf6 {[%emt 0:00:00]} 2. Bf4 {[%emt 0:00:01]} e6 {[%emt 0:00:02]} 3. e3 {[%emt 0:00:02]} c5 {[%emt 0:00:03]} 4. c3 {[%emt 0:00:03]} Nc6 {[%emt 0:00:07]} 5. Nd2 {[%emt 0:00:05]} cxd4 {[%emt 0:00:02]} 6. exd4 {[%emt 0:00:02]} Be7 {[%emt 0:00:04]} 7. Bd3 {[%emt 0:00:03]} Nd5 {[%emt 0:00:08]} 8. Bg3 {[%emt 0:00:05]} f5 {[%emt 0:00:13]} 9. h3 {[%emt 0:00:31]} O-O {[%emt 0:00:08]} 10. Ngf3 {[%emt 0:00:17]} b6 {[%emt 0:00:15]} 11. Qe2 {[%emt 0:00:26]} Bb7 {[%emt 0:00:03]} 12. Ne5 {[%emt 0:00:06]} Nxe5 {[%emt 0:00:11]} 13. Bxe5 {[%emt 0:00:04]} d6 {[%emt 0:00:08]} 14. Bh2 {[%emt 0:00:03]} Qd7 {[%emt 0:00:02]} 15. O-O {[%emt 0:00:12]} Bf6 {[%emt 0:00:08]} 16. Rfe1 {[%emt 0:00:05]} Rae8 {[%emt 0:00:01]} 17. Nf3 {[%emt 0:00:12]} Bc6 {[%emt 0:00:20]} 18. a3 {[%emt 0:00:07]} Kh8 {[%emt 0:00:02]} 19. Qc2 {[%emt 0:00:12]} g5 {[%emt 0:00:08]} 20. Re2 {[%emt 0:00:24]} Rg8 {[%emt 0:00:01]} 21. Rae1 {[%emt 0:00:11]} Nf4 {[%emt 0:00:15]} 22. Bxf4 {[%emt 0:00:11]} gxf4 {[%emt 0:00:02]} 23. Kh2 {[%emt 0:00:02]} Bxf3 {[%emt 0:00:09]} 24. gxf3 {[%emt 0:00:01]} Re7 {[%emt 0:00:08]} 25. Rg1 {[%emt 0:00:08]} Reg7 {[%emt 0:00:05]} 26. Ree1 {[%emt 0:00:03]} Qf7 {[%emt 0:00:10]} 27. Qd2 {[%emt 0:00:03]} Rxg1 {[%emt 0:00:06]} 28. Rxg1 {[%emt 0:00:01]} Rxg1 29. Kxg1 {[%emt 0:00:01]} Qh5 {[%emt 0:00:05]} 30. Kh2 {[%emt 0:00:02]} Qxf3 {[%emt 0:00:04]} 31. Qe2 {[%emt 0:00:01]} Qd5 {[%emt 0:00:03]} 32. f3 {[%emt 0:00:02]} Kg7 {[%emt 0:00:07]} 33. Qg2+ {[%emt 0:00:01]} Kf7 {[%emt 0:00:01]} 34. Qe2 {[%emt 0:00:01]} Qb7 {[%emt 0:00:03]} 35. Kg2 {[%emt 0:00:01]} Qc8 {[%emt 0:00:02]} 36. Kh2 {[%emt 0:00:01]} Qg8 {[%emt 0:00:01]} 37. Qf2 {[%emt 0:00:01]} Qg5 {[%emt 0:00:03]} 38. Bc2 {[%emt 0:00:01]} Qh5 {[%emt 0:00:02]} 39. Bb3 {[%emt 0:00:02]} Bh4 {[%emt 0:00:03]} 40. Qe2 {[%emt 0:00:00]} Bg3+ 41. Kg2 Qg6 {[%emt 0:00:04]} 42. Kh1 {[%emt 0:00:02]} d5 {[%emt 0:00:08]} 43. Bc2 {[%emt 0:00:02]} Bh4 {[%emt 0:00:05]} 44. Qg2 {[%emt 0:00:03]} Qg3 {[%emt 0:00:05]} 45. Qxg3 {[%emt 0:00:04]} fxg3 {[%emt 0:00:01]} 46. f4 {[%emt 0:00:03]} h5 {[%emt 0:00:06]} 47. Kg2 {[%emt 0:00:00]} Kg6 {[%emt 0:00:03]} 48. Bd1 {[%emt 0:00:01]} Kh6 {[%emt 0:00:09]} 49. Be2 {[%emt 0:00:00]} Kg6 {[%emt 0:00:02]} 50. Bb5 {[%emt 0:00:01]} Kf6 {[%emt 0:00:03]} 51. Be8 {[%emt 0:00:01]} a5 {[%emt 0:00:02]} 52. Bxh5 {[%emt 0:00:02]} Ke7 {[%emt 0:00:01]} 53. Be2 {[%emt 0:00:01]} Kf6 {[%emt 0:00:01]} 54. Bd3 {[%emt 0:00:01]} Ke7 {[%emt 0:00:01]} 55. Be2 {[%emt 0:00:02]} 1/2-1/2

[Event "GER-chW Blitz 2019"]
[Site "Magdeburg"]
[Date "2019.05.25"]
[Round "7.7"]
[White "Lubbe, Melanie"]
[Black "Daemering, Katrin"]
[Result "0-1"]
[ECO "A44"]
[WhiteElo "2278"]
[BlackElo "2003"]
[Annotator "NA"]
[PlyCount "76"]
[EventDate "2019.05.25"]
[EventType "tourn"]
[EventCountry "GER"]
[SourceTitle "playchess.com"]
[Source "ChessBase"]
[SourceQuality "1"]
[TimeControl "180+2"]

1. d4 {[%emt 0:00:00]} c5 {[%emt 0:00:00]} 2. d5 {[%emt 0:00:03]} e5 {[%emt 0:00:00]} 3. e4 {[%emt 0:00:03]} d6 {[%emt 0:00:01]} 4. c4 {[%emt 0:00:02]} g6 {[%emt 0:00:02]} 5. Nc3 {[%emt 0:00:02]} Bg7 {[%emt 0:00:01]} 6. Be3 {[%emt 0:00:03]} Ne7 {[%emt 0:00:02]} 7. Qd2 {[%emt 0:00:05]} a6 {[%emt 0:00:01]} 8. f3 {[%emt 0:00:04]} f5 {[%emt 0:00:09]} 9. Bh6 {[%emt 0:00:16]} O-O {[%emt 0:00:16]} 10. h4 {[%emt 0:00:06]} f4 {[%emt 0:00:10]} 11. Bg5 {[%emt 0:00:22]} h6 {[%emt 0:00:13]} 12. Bxe7 {[%emt 0:00:02]} Qxe7 {[%emt 0:00:01]} 13. Bd3 {[%emt 0:00:17]} Nd7 {[%emt 0:00:06]} 14. Qf2 {[%emt 0:00:14]} Nf6 {[%emt 0:00:12]} 15. g3 {[%emt 0:00:14]} Nh5 {[%emt 0:00:15]} 16. Nge2 {[%emt 0:00:11]} fxg3 {[%emt 0:00:08]} 17. Nxg3 {[%emt 0:00:01]} Nf4 {[%emt 0:00:01]} 18. O-O-O {[%emt 0:00:16]} Bd7 {[%emt 0:00:20]} 19. Nce2 {[%emt 0:00:02]} Nxd3+ {[%emt 0:00:07]} 20. Rxd3 {[%emt 0:00:01]} b5 {[%emt 0:00:02]} 21. Nc3 {[%emt 0:00:39]} bxc4 {[%emt 0:00:04]} 22. Rd2 {[%emt 0:00:01]} Qf6 {[%emt 0:00:05]} 23. Rf1 {[%emt 0:00:06]} Rab8 {[%emt 0:00:02]} 24. Nge2 {[%emt 0:00:06]} Rb4 {[%emt 0:00:10]} 25. Qg3 {[%emt 0:00:03]} Rfb8 {[%emt 0:00:08]} 26. Rg1 {[%emt 0:00:07]} Kh7 {[%emt 0:00:02]} 27. Rg2 {[%emt 0:00:05]} Be8 {[%emt 0:00:04]} 28. Ng1 {[%emt 0:00:01]} Qf4 {[%emt 0:00:07]} 29. Nh3 {[%emt 0:00:07]} Qxg3 30. Rxg3 {[%emt 0:00:01]} Bf6 {[%emt 0:00:11]} 31. Rg4 {[%emt 0:00:05]} Bd7 {[%emt 0:00:02]} 32. Rg3 {[%emt 0:00:04]} Bxh4 {[%emt 0:00:02]} 33. Rdg2 {[%emt 0:00:01]} Bxg3 {[%emt 0:00:02]} 34. Rxg3 {[%emt 0:00:01]} Bxh3 {[%emt 0:00:03]} 35. Rxh3 {[%emt 0:00:01]} Rxb2 {[%emt 0:00:02]} 36. Rh1 {[%emt 0:00:04]} Rf2 {[%emt 0:00:04]} 37. Rh3 {[%emt 0:00:01]} Rbb2 {[%emt 0:00:02]} 38. Kd1 {[%emt 0:00:05]} Rf1# {[%emt 0:00:04]} 0-1

[Event "GER-chW Blitz 2019"]
[Site "Magdeburg"]
[Date "2019.05.25"]
[Round "7.8"]
[White "Ries, Jutta"]
[Black "Kreismann, Franziska"]
[Result "1-0"]
[ECO "A02"]
[WhiteElo "2017"]
[BlackElo "1589"]
[Annotator "NA"]
[PlyCount "23"]
[EventDate "2019.05.25"]
[EventType "tourn"]
[EventCountry "GER"]
[SourceTitle "playchess.com"]
[Source "ChessBase"]
[SourceQuality "1"]
[TimeControl "180+2"]

1. f4 {[%emt 0:00:00]} c6 {[%emt 0:00:01]} 2. Nf3 {[%emt 0:00:02]} d5 {[%emt 0:00:01]} 3. b3 {[%emt 0:00:01]} Bf5 {[%emt 0:00:02]} 4. Bb2 {[%emt 0:00:01]} Nf6 {[%emt 0:00:03]} 5. e3 {[%emt 0:00:01]} e6 {[%emt 0:00:08]} 6. Be2 {[%emt 0:00:04]} Bc5 {[%emt 0:00:12]} 7. O-O {[%emt 0:00:08]} O-O {[%emt 0:00:02]} 8. Nh4 {[%emt 0:00:35]} h5 {[%emt 0:00:28]} 9. Nxf5 {[%emt 0:00:03]} exf5 {[%emt 0:00:01]} 10. Bxh5 {[%emt 0:00:03]} Nxh5 {[%emt 0:00:02]} 11. Qxh5 {[%emt 0:00:02]} g6 {[%emt 0:00:48]} 12. Qh8# 1-0

[Event "GER-chW Blitz 2019"]
[Site "Magdeburg"]
[Date "2019.05.25"]
[Round "7.9"]
[White "Kushka, Alena"]
[Black "Kunze, Kerstin"]
[Result "1-0"]
[ECO "E20"]
[WhiteElo "2148"]
[BlackElo "2066"]
[Annotator "NA"]
[PlyCount "87"]
[EventDate "2019.05.25"]
[EventType "tourn"]
[EventCountry "GER"]
[SourceTitle "playchess.com"]
[Source "ChessBase"]
[SourceQuality "1"]
[TimeControl "180+2"]

1. d4 {[%emt 0:00:00]} Nf6 {[%emt 0:00:00]} 2. c4 {[%emt 0:00:00]} e6 {[%emt 0:00:00]} 3. Nc3 {[%emt 0:00:01]} Bb4 {[%emt 0:00:04]} 4. f3 {[%emt 0:00:01]} d5 {[%emt 0:00:04]} 5. a3 {[%emt 0:00:02]} Bxc3+ {[%emt 0:00:04]} 6. bxc3 {[%emt 0:00:01]} O-O {[%emt 0:00:01]} 7. cxd5 {[%emt 0:00:02]} exd5 {[%emt 0:00:01]} 8. e3 {[%emt 0:00:04]} c5 {[%emt 0:00:11]} 9. Bd3 {[%emt 0:00:03]} Qa5 {[%emt 0:00:18]} 10. Bd2 {[%emt 0:00:11]} Qc7 {[%emt 0:00:30]} 11. Ne2 {[%emt 0:00:04]} b6 {[%emt 0:00:29]} 12. O-O {[%emt 0:00:09]} Ba6 {[%emt 0:00:01]} 13. Bxa6 {[%emt 0:00:12]} Nxa6 {[%emt 0:00:00]} 14. Ng3 {[%emt 0:00:07]} g6 {[%emt 0:00:06]} 15. e4 {[%emt 0:00:13]} cxd4 {[%emt 0:00:26]} 16. cxd4 {[%emt 0:00:01]} Rac8 {[%emt 0:00:25]} 17. e5 {[%emt 0:00:12]} Ne8 {[%emt 0:00:01]} 18. Bh6 {[%emt 0:00:23]} Ng7 {[%emt 0:00:00]} 19. Rc1 {[%emt 0:00:06]} Qd7 {[%emt 0:00:04]} 20. Qd3 {[%emt 0:00:07]} Nb8 {[%emt 0:00:01]} 21. f4 {[%emt 0:00:07]} Nc6 {[%emt 0:00:16]} 22. f5 {[%emt 0:00:07]} Rfe8 {[%emt 0:00:06]} 23. Bxg7 Kxg7 {[%emt 0:00:01]} 24. f6+ {[%emt 0:00:27]} Kh8 {[%emt 0:00:02]} 25. Qe3 {[%emt 0:00:09]} Qg4 {[%emt 0:00:06]} 26. Rf4 {[%emt 0:00:14]} Qg5 {[%emt 0:00:01]} 27. h4 {[%emt 0:00:26]} Qh6 {[%emt 0:00:03]} 28. Qf2 {[%emt 0:00:08]} Na5 {[%emt 0:00:06]} 29. Rxc8 {[%emt 0:00:04]} Rxc8 {[%emt 0:00:01]} 30. h5 {[%emt 0:00:02]} Nc4 {[%emt 0:00:17]} 31. e6 {[%emt 0:00:07]} fxe6 {[%emt 0:00:04]} 32. f7 Rf8 33. hxg6 {[%emt 0:00:06]} hxg6 {[%emt 0:00:01]} 34. Ne2 {[%emt 0:00:06]} Nd6 {[%emt 0:00:01]} 35. Rh4 {[%emt 0:00:01]} Kg7 {[%emt 0:00:01]} 36. Rxh6 {[%emt 0:00:01]} Kxh6 {[%emt 0:00:01]} 37. Qf6 {[%emt 0:00:01]} Rxf7 {[%emt 0:00:01]} 38. Qh4+ {[%emt 0:00:01]} Kg7 {[%emt 0:00:01]} 39. Nf4 {[%emt 0:00:02]} Nf5 40. Nxe6+ {[%emt 0:00:01]} Kg8 {[%emt 0:00:03]} 41. Qd8+ {[%emt 0:00:02]} Kh7 {[%emt 0:00:01]} 42. Ng5+ {[%emt 0:00:01]} Kh6 {[%emt 0:00:01]} 43. Nxf7+ Kh5 44. Qg5# {[%emt 0:00:03]} 1-0

[Event "GER-chW Blitz 2019"]
[Site "Magdeburg"]
[Date "2019.05.25"]
[Round "7.10"]
[White "Schulze, Lara"]
[Black "Gheng, Simona"]
[Result "0-1"]
[ECO "B75"]
[WhiteElo "2160"]
[BlackElo "1991"]
[Annotator "NA"]
[PlyCount "97"]
[EventDate "2019.05.25"]
[EventType "tourn"]
[EventCountry "GER"]
[SourceTitle "playchess.com"]
[Source "ChessBase"]
[SourceQuality "1"]
[TimeControl "180+2"]

1. e4 {[%emt 0:00:00]} c5 {[%emt 0:00:00]} 2. Nf3 {[%emt 0:00:01]} d6 {[%emt 0:00:00]} 3. d4 {[%emt 0:00:00]} cxd4 {[%emt 0:00:00]} 4. Nxd4 {[%emt 0:00:01]} Nf6 {[%emt 0:00:01]} 5. Nc3 {[%emt 0:00:01]} g6 {[%emt 0:00:01]} 6. Be3 {[%emt 0:00:03]} Bg7 {[%emt 0:00:01]} 7. f3 {[%emt 0:00:00]} Nc6 {[%emt 0:00:01]} 8. Qd2 {[%emt 0:00:03]} O-O {[%emt 0:00:01]} 9. g4 {[%emt 0:00:01]} h5 {[%emt 0:00:22]} 10. gxh5 {[%emt 0:00:50]} Nxh5 {[%emt 0:00:01]} 11. O-O-O {[%emt 0:00:03]} Nxd4 {[%emt 0:00:28]} 12. Bxd4 {[%emt 0:00:01]} Bxd4 {[%emt 0:00:01]} 13. Qxd4 {[%emt 0:00:03]} Qa5 {[%emt 0:00:00]} 14. Kb1 {[%emt 0:00:14]} Qc5 {[%emt 0:00:11]} 15. Nd5 {[%emt 0:00:15]} e5 {[%emt 0:00:33]} 16. Ne7+ {[%emt 0:00:31]} Kg7 {[%emt 0:00:06]} 17. Qxd6 {[%emt 0:00:09]} Qxd6 {[%emt 0:00:01]} 18. Rxd6 {[%emt 0:00:01]} Be6 {[%emt 0:00:06]} 19. Nd5 {[%emt 0:00:04]} Rfd8 {[%emt 0:00:08]} 20. Rxd8 {[%emt 0:00:02]} Rxd8 {[%emt 0:00:01]} 21. c4 {[%emt 0:00:03]} b5 {[%emt 0:00:06]} 22. b3 {[%emt 0:00:09]} bxc4 {[%emt 0:00:01]} 23. Bxc4 {[%emt 0:00:01]} Bxd5 {[%emt 0:00:05]} 24. Bxd5 {[%emt 0:00:05]} Nf4 {[%emt 0:00:01]} 25. Rd1 {[%emt 0:00:12]} Rh8 {[%emt 0:00:01]} 26. Rd2 {[%emt 0:00:05]} Rh3 {[%emt 0:00:02]} 27. Bc4 {[%emt 0:00:11]} Rxf3 {[%emt 0:00:02]} 28. Rd7 {[%emt 0:00:01]} Nh5 {[%emt 0:00:00]} 29. Rxa7 {[%emt 0:00:02]} Rf2 {[%emt 0:00:19]} 30. a4 {[%emt 0:00:03]} Rxh2 {[%emt 0:00:13]} 31. Rxf7+ {[%emt 0:00:01]} Kh6 {[%emt 0:00:00]} 32. a5 {[%emt 0:00:01]} Rh1+ {[%emt 0:00:11]} 33. Kb2 {[%emt 0:00:01]} Rd1 {[%emt 0:00:02]} 34. a6 {[%emt 0:00:13]} Rd8 {[%emt 0:00:01]} 35. a7 {[%emt 0:00:15]} Nf4 {[%emt 0:00:04]} 36. Bb5 {[%emt 0:00:13]} g5 {[%emt 0:00:15]} 37. Bc6 {[%emt 0:00:01]} Kg6 {[%emt 0:00:01]} 38. Rc7 {[%emt 0:00:07]} g4 {[%emt 0:00:05]} 39. a8=Q {[%emt 0:00:03]} Rxa8 {[%emt 0:00:02]} 40. Bxa8 {[%emt 0:00:01]} g3 {[%emt 0:00:00]} 41. Rc8 {[%emt 0:00:05]} Kg7 {[%emt 0:00:02]} 42. Rc7+ {[%emt 0:00:05]} Kg6 {[%emt 0:00:01]} 43. Rc8 {[%emt 0:00:00]} Kg7 {[%emt 0:00:01]} 44. Rc1 {[%emt 0:00:01]} g2 {[%emt 0:00:01]} 45. Rg1 {[%emt 0:00:02]} Kh6 {[%emt 0:00:01]} 46. Kc3 {[%emt 0:00:02]} Ne2+ {[%emt 0:00:02]} 47. Kd2 {[%emt 0:00:02]} Nxg1 {[%emt 0:00:01]} 48. Ke3 {[%emt 0:00:01]} Nh3 {[%emt 0:00:02] Kf2 g1=Q+} 49. Ke2 {[%emt 0:00:00] Qa7 [%clk 0:00:52]} 0-1

[Event "GER-chW Blitz 2019"]
[Site "Magdeburg"]
[Date "2019.05.25"]
[Round "7.11"]
[White "Braje, Monika"]
[Black "Kopylov, Luba"]
[Result "1-0"]
[ECO "B21"]
[WhiteElo "1781"]
[BlackElo "2078"]
[Annotator "NA"]
[PlyCount "73"]
[EventDate "2019.05.25"]
[EventType "tourn"]
[EventCountry "GER"]
[SourceTitle "playchess.com"]
[Source "ChessBase"]
[SourceQuality "1"]
[TimeControl "180+2"]

1. e4 {[%emt 0:00:00]} c5 {[%emt 0:00:00]} 2. d4 {[%emt 0:00:02]} cxd4 {[%emt 0:00:01]} 3. c3 {[%emt 0:00:00]} d6 {[%emt 0:00:04]} 4. cxd4 {[%emt 0:00:02]} Nf6 {[%emt 0:00:01]} 5. Nc3 {[%emt 0:00:02]} g6 {[%emt 0:00:03]} 6. Nf3 {[%emt 0:00:02]} Bg7 {[%emt 0:00:02]} 7. Bc4 {[%emt 0:00:01]} O-O {[%emt 0:00:02]} 8. O-O {[%emt 0:00:03]} Bg4 {[%emt 0:00:02]} 9. h3 {[%emt 0:00:05]} Bxf3 {[%emt 0:00:03]} 10. Qxf3 {[%emt 0:00:02]} Nc6 {[%emt 0:00:01]} 11. Rd1 {[%emt 0:00:06]} Rc8 {[%emt 0:00:02]} 12. Bb3 {[%emt 0:00:04]} Qb6 {[%emt 0:00:02]} 13. Be3 {[%emt 0:00:09]} Na5 {[%emt 0:00:02]} 14. Na4 {[%emt 0:00:34]} Qb5 {[%emt 0:00:15]} 15. Nc3 {[%emt 0:00:02]} Qb4 {[%emt 0:00:05]} 16. e5 {[%emt 0:00:14]} Ne8 {[%emt 0:00:29]} 17. Nd5 {[%emt 0:00:03]} Nxb3 {[%emt 0:00:33]} 18. Nxb4 {[%emt 0:00:02]} Nxa1 {[%emt 0:00:02]} 19. Rxa1 {[%emt 0:00:01]} dxe5 {[%emt 0:00:01]} 20. dxe5 {[%emt 0:00:09]} Bxe5 {[%emt 0:00:01]} 21. Rb1 {[%emt 0:00:03]} Nd6 {[%emt 0:00:05]} 22. Nd5 {[%emt 0:00:01]} Nf5 {[%emt 0:00:06]} 23. Bd2 {[%emt 0:00:14]} Rc2 {[%emt 0:00:03]} 24. Bc3 {[%emt 0:00:05]} Nd4 {[%emt 0:00:21]} 25. Nxe7+ {[%emt 0:00:11]} Kg7 {[%emt 0:00:07]} 26. Bxd4 {[%emt 0:00:01]} Bxd4 {[%emt 0:00:01]} 27. Rf1 {[%emt 0:00:09]} Re8 {[%emt 0:00:05]} 28. Nd5 {[%emt 0:00:05]} Ree2 {[%emt 0:00:03]} 29. Ne3 {[%emt 0:00:08]} Rxb2 {[%emt 0:00:02]} 30. Qd5 {[%emt 0:00:04]} Bxe3 {[%emt 0:00:05]} 31. fxe3 {[%emt 0:00:03]} Red2 {[%emt 0:00:05]} 32. Qe5+ {[%emt 0:00:03]} Kh6 {[%emt 0:00:05]} 33. Qf4+ {[%emt 0:00:03]} g5 {[%emt 0:00:02]} 34. Qf6+ {[%emt 0:00:02]} Kh5 {[%emt 0:00:02]} 35. Qxf7+ {[%emt 0:00:02]} Kh4 {[%emt 0:00:01]} 36. Qxh7+ {[%emt 0:00:10]} Kg3 {[%emt 0:00:01]} 37. Rf3# {[%emt 0:00:05]} 1-0

[Event "GER-chW Blitz 2019"]
[Site "Magdeburg"]
[Date "2019.05.25"]
[Round "7.12"]
[White "Mader, Lena"]
[Black "Zimmer, Elke"]
[Result "1-0"]
[ECO "A28"]
[WhiteElo "1839"]
[BlackElo "1926"]
[Annotator "NA"]
[PlyCount "109"]
[EventDate "2019.05.25"]
[EventType "tourn"]
[EventCountry "GER"]
[SourceTitle "playchess.com"]
[Source "ChessBase"]
[SourceQuality "1"]
[TimeControl "180+2"]

1. c4 {[%emt 0:00:00]} e5 {[%emt 0:00:00]} 2. Nc3 {[%emt 0:00:00]} Nf6 {[%emt 0:00:00]} 3. Nf3 {[%emt 0:00:00]} Nc6 {[%emt 0:00:04]} 4. d4 {[%emt 0:00:01]} exd4 {[%emt 0:00:01]} 5. Nxd4 {[%emt 0:00:00]} Be7 {[%emt 0:00:10]} 6. g3 {[%emt 0:00:07]} O-O {[%emt 0:00:02]} 7. Bg2 {[%emt 0:00:01]} Nxd4 {[%emt 0:00:05]} 8. Qxd4 {[%emt 0:00:01]} d6 {[%emt 0:00:05]} 9. O-O {[%emt 0:00:03]} Rb8 {[%emt 0:00:04]} 10. b3 {[%emt 0:00:14]} c6 {[%emt 0:00:01]} 11. Bb2 {[%emt 0:00:02]} Qb6 {[%emt 0:00:08]} 12. Qxb6 {[%emt 0:00:15]} axb6 {[%emt 0:00:01]} 13. Na4 {[%emt 0:00:09]} Bd8 {[%emt 0:00:01]} 14. Rfd1 {[%emt 0:00:16]} Ne8 {[%emt 0:00:01]} 15. Bd4 {[%emt 0:00:15]} b5 {[%emt 0:00:04]} 16. cxb5 {[%emt 0:00:07]} cxb5 {[%emt 0:00:02]} 17. Nc3 {[%emt 0:00:06]} Bd7 {[%emt 0:00:07]} 18. Be3 {[%emt 0:00:13]} Bc6 {[%emt 0:00:06]} 19. Bf4 {[%emt 0:00:06]} Bxg2 {[%emt 0:00:03]} 20. Kxg2 {[%emt 0:00:01]} Rc8 {[%emt 0:00:02]} 21. Nxb5 {[%emt 0:00:09]} Rc2 {[%emt 0:00:03]} 22. Rd2 {[%emt 0:00:10]} Rxd2 {[%emt 0:00:05]} 23. Bxd2 {[%emt 0:00:00]} Bf6 {[%emt 0:00:01]} 24. Bc3 {[%emt 0:00:09]} Bxc3 25. Nxc3 {[%emt 0:00:01]} Nc7 {[%emt 0:00:08]} 26. e4 {[%emt 0:00:04]} Rc8 {[%emt 0:00:02]} 27. a4 {[%emt 0:00:13]} Kf8 {[%emt 0:00:04]} 28. b4 {[%emt 0:00:04]} Ke7 {[%emt 0:00:02]} 29. a5 {[%emt 0:00:13]} Na6 {[%emt 0:00:03]} 30. Nd5+ {[%emt 0:00:03]} Ke6 {[%emt 0:00:05]} 31. b5 {[%emt 0:00:06]} Nc5 {[%emt 0:00:02]} 32. a6 {[%emt 0:00:02]} bxa6 {[%emt 0:00:06]} 33. bxa6 {[%emt 0:00:01]} Nxe4 {[%emt 0:00:05]} 34. a7 {[%emt 0:00:07]} Rc2 {[%emt 0:00:23]} 35. a8=Q {[%emt 0:00:09]} Rxf2+ {[%emt 0:00:02]} 36. Kh3 {[%emt 0:00:01]} Ng5+ {[%emt 0:00:02]} 37. Kg4 {[%emt 0:00:08]} Ne4 {[%emt 0:00:24]} 38. Nf4+ {[%emt 0:00:04]} Kf6 {[%emt 0:00:03]} 39. Qd8+ {[%emt 0:00:05]} Ke5 {[%emt 0:00:06]} 40. Ra5+ {[%emt 0:00:03]} Kd4 {[%emt 0:00:02]} 41. Ra4+ {[%emt 0:00:10]} Ke3 {[%emt 0:00:02]} 42. Rxe4+ {[%emt 0:00:01]} Kxe4 {[%emt 0:00:01]} 43. Qxd6 {[%emt 0:00:03]} f5+ {[%emt 0:00:02]} 44. Kg5 {[%emt 0:00:05]} Rxh2 {[%emt 0:00:10]} 45. Qd5+ {[%emt 0:00:03]} Ke3 {[%emt 0:00:01]} 46. Qd3+ {[%emt 0:00:01]} Kf2 {[%emt 0:00:02]} 47. Kxf5 {[%emt 0:00:06]} g6+ {[%emt 0:00:02]} 48. Ke4 g5 {[%emt 0:00:11]} 49. Qf3+ {[%emt 0:00:03]} Kg1 {[%emt 0:00:03]} 50. Ne2+ {[%emt 0:00:04]} Rxe2+ {[%emt 0:00:02]} 51. Qxe2 {[%emt 0:00:01]} g4 {[%emt 0:00:02]} 52. Qxg4 {[%emt 0:00:02]} h5 {[%emt 0:00:01]} 53. Qxh5 {[%emt 0:00:01]} Kg2 {[%emt 0:00:00]} 54. g4 {[%emt 0:00:01]} Kg3 {[%emt 0:00:01]} 55. g5 {[%emt 0:00:01]} 1-0